Cogmind - Beta 14 @@@ ROGUE MODE // 2024.10.29 @ 09:39:37 Player: corey Result: Destroyed by G-47 Trooper with Particle Gun Performance ------------- Evolutions (3) 1500 Regions Visited (9) 1800 Robots Destroyed (58) 290 Value Destroyed (2044) 2044 Prototype IDs (5) 100 Alien Tech Used (0) 0 Bonus (1663) 1663 TOTAL SCORE: 7397 Bonus ------- High Alert Combat Kills 580 Follower Combat Kills 728 Entered Garrisons 200 Aligned with FarCom 300 Friendly Fire -145 Cogmind --------- Core Integrity 0/700 Matter 13/300 Energy 100/100 System Corruption 21% Temperature Cool (9) Movement Flying (354) Ox5 Location -7/Factory Parts ------- > --- POWER (2) -------- (None) > --- PROPULSION (4) --- Improved Cesium-ion Thruster Improved Cesium-ion Thruster Improved Cesium-ion Thruster > --- UTILITY (4) ------ Huge Storage Unit Launcher Guidance Computer > --- WEAPON (3) ------- Heavy Missile Launcher Rocket Array > --- INVENTORY (25) --- Light Nuclear Core Gravmag System Improved Cesium-ion Thruster Improved Cesium-ion Thruster Kinecellerator Transmission Jammer ECM Suite Heavy Armor Plating System Restoration Module System Restoration Module System Restoration Module System Restoration Module Gauss Rifle Gauss Rifle Gauss Rifle Peak State ------------ > --- POWER ------------ Antimatter Reactor Antimatter Reactor > --- PROPULSION ------- Heavy Treads Heavy Treads > --- UTILITY ---------- Large Storage Unit Advanced Weight Redist. System Microactuators Transmission Jammer > --- WEAPON ----------- Minigun Gauss Rifle Remote Datajack > --- INVENTORY -------- Antimatter Reactor Armored Treads Xenon Bombardment Thruster Xenon Bombardment Thruster Improved Heat Sink Compact Matter Pod Hardened Medium Armor Plating Hardened Medium Armor Plating Hardened Medium Armor Plating Arc Projector Gauss Rifle Gauss Rifle Gauss Rifle Advanced Assault Cannon Micro-nuke Launcher [Rating: 67] Favorites ----------- Power Light Nuclear Core Engine Heavy Ion Engine Power Core Light Nuclear Core Reactor Antimatter Reactor Propulsion Aluminum Leg Treads Heavy Treads Leg Aluminum Leg Wheel Wheel Flight Unit Flight Unit Utility Large Storage Unit Device Improved Heat Sink Storage Large Storage Unit Processor Signal Interpreter Protection Hardened Medium Armor Plating Weapon Gauss Rifle Energy Gun Medium Laser Ballistic Gun Gauss Rifle Ballistic Cannon Light Cannon Launcher Missile Launcher Special Weapon Remote Datajack Impact Weapon Heavy Mace Build | -11 -10 -10 -10 -9 -8 -8 -7 -7 -7 ------- Run | Yrd Mat Min Exi Min Mat Gar Fac Was Fac Slots Evolved 6 | . . . . . 4 . 2 . . Power 1 | . . . . . 1 . . . . Propulsion 2 | . . . . . 1 . 1 . . Utility 2 | . . . . . 2 . . . . Weapon 1 | . . . . . . . 1 . . Parts Attached 117 | 7 4 8 3 3 9 20 24 6 33 Power 19 | 1 . 1 1 . 2 3 3 4 4 Engine 9 | 1 . . . . 2 2 1 . 3 Core 5 | . . 1 1 . . 1 2 . . Reactor 5 | . . . . . . . . 4 1 Propulsion 35 | 2 1 5 2 . 3 9 2 2 9 Treads 7 | . . . . . 3 . . 2 2 Leg 11 | . . 3 2 . . 5 1 . . Wheel 5 | 2 1 . . . . . . . 2 Hover . | . . . . . . . . . . Flight 12 | . . 2 . . . 4 1 . 5 Utility 31 | 1 2 2 . 2 4 2 8 . 10 Device 11 | . 1 1 . . 1 1 4 . 3 Storage 7 | 1 . . . 1 1 1 1 . 2 Processor 3 | . 1 . . . 1 . . . 1 Hackware . | . . . . . . . . . . Protection 10 | . . 1 . 1 1 . 3 . 4 Artifact . | . . . . . . . . . . Weapon 32 | 3 1 . . 1 . 6 11 . 10 Energy Gun 10 | 1 . . . 1 . 4 3 . 1 Energy Cannon . | . . . . . . . . . . Ballistic Gun 12 | 2 . . . . . 1 6 . 3 Ballistic Cannon 2 | . 1 . . . . . . . 1 Launcher 5 | . . . . . . . . . 5 Special Weapon 2 | . . . . . . . 2 . . Impact Weapon 1 | . . . . . . 1 . . . Slashing Weapon . | . . . . . . . . . . Piercing Weapon . | . . . . . . . . . . Special Melee Weapon . | . . . . . . . . . . Unidentified Prototypes 5 | . . 1 . . 1 . 1 . 2 Corrupted Parts 2 | . . . . . . . . . 2 System Corruption 14 | . . . . . . . . . 14 Parts Lost 32 | . . 2 . . 1 11 . . 18 Power 6 | . . . . . . 2 . . 4 Propulsion 10 | . . 1 . . . 4 . . 5 Utility 8 | . . 1 . . 1 2 . . 4 Weapon 8 | . . . . . . 3 . . 5 Highest Loss Streak 11 | . . 2 . . 1 11 . . 8 To Critical Strikes . | . . . . . . . . . . Average Slot Usage (%) 89 | . 98 97 100 99 88 91 96 90 75 Engine 4 | . 14 3 . . 9 9 5 . 3 Core 6 | . . 10 14 14 9 8 9 11 . Reactor 2 | . . . . . . . . 3 9 Treads 6 | . . . . . 4 15 . 8 11 Leg 11 | . . 1 28 28 15 6 24 13 . Wheel 1 | . 28 4 . . . . . . . Flight 3 | . . 20 . . . 3 3 . 4 Device 8 | . 3 2 14 . 2 11 14 15 5 Storage 6 | . 10 . . . 7 8 9 7 7 Processor 6 | . 12 14 14 14 13 5 . . 4 Protection 6 | . . 11 . 12 9 5 5 7 7 Energy Gun 5 | . 10 . . 8 9 12 8 . 1 Ballistic Gun 7 | . 14 14 14 5 . 1 6 15 7 Ballistic Cannon 4 | . 3 14 14 14 9 2 . . 2 Launcher 1 | . . . . . . . . . 4 Special Weapon 2 | . . . . . . . 5 7 2 Peak Build Rating 67 | 6 7 15 15 15 19 21 42 66 67 Average Rating 30 | 4 6 8 15 9 15 19 35 53 54 On Entrance 19 | . 6 7 15 15 9 19 21 40 66 Naked Turns . | . . . . . . . . . . Heaviest Build 126 | 12 12 14 14 14 40 43 62 71 126 Greatest Support 149 | 26 26 26 20 20 60 60 54 149 149 Greatest Overweight (x) 33 | . . 3 . . 1 7 2 4 33 Average Overweight (x) . | . . . . . . . . 1 . Largest Inventory Capacity 25 | 8 8 5 5 25 15 15 15 15 25 Average Capacity 13 | 6 7 5 5 5 12 14 15 15 18 Most Carried 16 | 6 8 5 5 5 15 15 15 15 16 Average Carried 11 | 4 7 4 5 4 10 12 14 15 14 Final Capacity 25 | 8 5 5 5 5 15 15 15 15 25 Final Carried 16 | 6 5 5 5 5 14 11 15 15 16 Class Distribution -------------------- 51% | Mutant 18% | Scavenger-Skirmisher 8% | Scavenger-Mutant 7% | Scavenger-Tank 6% | Skirmisher 4% | Infiltrator-Skirmisher Dominant Class ---------------- Mutant | -10/Materials Mutant | -10/Mines Mutant | -10/Exiles Mutant | -9/Mines Mutant | -8/Materials Mutant | -8/Garrison Scavenger-Skirmisher | -7/Factory Skirmisher | -7/Waste Mutant | -7/Factory Resources | -11 -10 -10 -10 -9 -8 -8 -7 -7 -7 ----------- Run | Yrd Mat Min Exi Min Mat Gar Fac Was Fac Matter Collected 2099 | 269 72 124 101 30 134 256 171 396 546 Remotely . | . . . . . . . . . . Salvage Created 1754 | 16 143 48 . . 241 400 194 . 712 Parts 91 | 5 13 5 . . 10 9 11 . 38 Haulers Intercepted 1 | . . . . . . . . . 1 Recyclers Shooed 6 | . . . . . . . 2 . 4 Parts Field Recycled . | . . . . . . . . . . Retrieved Matter . | . . . . . . . . . . Parts Self-Destructed . | . . . . . . . . . . Prevented . | . . . . . . . . . . Kills | -11 -10 -10 -10 -9 -8 -8 -7 -7 -7 ------- Run | Yrd Mat Min Exi Min Mat Gar Fac Was Fac Combat Hostiles Destroyed 41 | . 2 3 . . 3 11 2 . 20 Melee 2 | . . . . . . 2 . . . Guns 17 | . 2 2 . . . 7 2 . 4 Cannons 7 | . . 1 . . 3 2 . . 1 AOE 15 | . . . . . . . . . 15 Classes Destroyed 15 | 1 3 1 . . 2 1 2 . 5 Worker 2 | . . . . . 1 . . . 1 Builder 1 | . . . . . . . . . 1 Tunneler 2 | 1 . . . . . . 1 . . Hauler 1 | . . . . . . . . . 1 Recycler 4 | . 1 . . . 1 . 1 . 1 Mechanic 2 | . . . . . . . . . 2 Watcher 3 | . 2 . . . . . . . 1 Swarmer 11 | . 2 2 . . . 3 . . 4 Grunt 18 | . . 1 . . 2 7 . . 8 Brawler 3 | . . . . . 1 . . . 2 Protector 1 | . . . . . . . . . 1 Sentry 2 | . . . . . . 1 . . 1 Hunter 2 | . . . . . . . 1 . 1 Programmer 3 | . . . . . . . 1 . 2 Heavy 1 | . . . . . . . . . 1 Surgeon 2 | . . . . . . . . . 2 Best Kill Streak 7 | 1 2 3 . . 3 3 1 . 7 Combat Bots Only 5 | . 2 3 . . 3 3 1 . 5 Max Kills in Single Turn 4 | 1 1 1 . . 1 2 1 . 4 Gunslinging 1 | . . . . . . 1 . . . Exploded 4 | . . . . . . . . . 4 Melee 1 | . . . . . . 1 . . . Uniques/NPCs Destroyed . | . . . . . . . . . . Combat | -11 -10 -10 -10 -9 -8 -8 -7 -7 -7 -------- Run | Yrd Mat Min Exi Min Mat Gar Fac Was Fac Hostile Shots Fired 524 | . 14 57 . . 15 177 18 2 241 Missed 138 | . 4 21 . . 5 52 7 . 49 Damage Taken 5933 | . 74 363 . . 182 1647 165 25 3477 Core 1214 | . 6 117 . . 27 363 30 . 671 Absorbed by Shields 13 | . . . . . . . . . 13 Redirected to Shielding 269 | . . 24 . . 13 50 . . 182 Regen/Repaired (Parts) 42 | . . . . . . . . 23 19 Core Remaining (%) 59 | 100 . . . 50 . 29 . . . Volleys Fired 180 | 3 14 15 . . 10 47 29 . 62 Largest 3 | 2 2 2 . . 2 2 2 . 3 Hottest 153 | 60 60 55 . . 85 121 83 . 153 Shots Fired 299 | 6 28 30 . . 21 78 42 . 94 Gun 214 | 6 28 15 . . 11 59 36 . 59 Cannon 56 | . . 15 . . 10 19 . . 12 Launcher 23 | . . . . . . . . . 23 Special 6 | . . . . . . . 6 . . Kinetic 147 | 3 14 30 . . 10 19 22 . 49 Thermal 92 | . . . . . 11 59 . . 22 Explosive 23 | . . . . . . . . . 23 Electromagnetic 31 | 3 14 . . . . . 14 . . Robot Hit Streak 12 | 1 3 4 . . 6 6 6 . 12 Robot Miss Streak 5 | 2 2 3 . . 1 2 5 . 4 Penetration Max 1 | . . . . . . . 1 . 1 Secondary Targets 2 | . . . . . . 2 . . . Max Gunslinging Chain 1 | . . . . . . 1 . . . Shots Hit Robots 189 | 2 17 14 . . 16 53 27 . 60 Core Hits 108 | 1 6 5 . . 10 19 7 . 60 Critical Kills 1 | . . . . . . . 1 . . Critical Parts Destroyed 1 | . . . . . . 1 . . . Critical Strikes 10 | . 1 . . . 2 6 1 . . Burn 6 | . . . . . 1 5 . . . Destroy 1 | . . . . . . . 1 . . Blast 1 | . . . . . 1 . . . . Corrupt 1 | . 1 . . . . . . . . Smash 1 | . . . . . . 1 . . . Melee Attacks 9 | . . . . . . 9 . . . Impact 9 | . . . . . . 9 . . . Slashing . | . . . . . . . . . . Piercing . | . . . . . . . . . . Sneak Attacks 1 | . . . . . . 1 . . . Combat Hostiles 1 | . . . . . . 1 . . . Follow-up Attacks . | . . . . . . . . . . Damage Inflicted 6135 | 30 282 221 . . 254 1024 394 . 3930 Guns 2190 | 30 228 94 . . 112 542 389 . 795 Cannons 727 | . . 127 . . 142 220 . . 238 Explosions 2942 | . 54 . . . . . . . 2888 Melee 262 | . . . . . . 262 . . . Ramming 14 | . . . . . . . 5 . 9 Kinetic 1813 | . 124 221 . . 142 220 360 . 746 Thermal 1571 | . 54 . . . 112 542 . . 863 Explosive 2312 | . . . . . . . . . 2312 Electromagnetic 163 | 30 104 . . . . . 29 . . Impact 262 | . . . . . . 262 . . . Slashing . | . . . . . . . . . . Piercing . | . . . . . . . . . . Highest Corruption 21 | . . . . . 3 4 2 2 21 Average Corruption 4 | . . . . . 3 3 1 2 6 Corruption Purged . | . . . . . . . . . . Corruption Blocked . | . . . . . . . . . . Effects 76 | . . . . . 4 24 2 2 44 Message Errors 19 | . . . . . 1 8 . . 10 Matter Fused 16 | . . . . . 1 2 1 1 11 Heat Flow Errors 6 | . . . . . . 3 . . 3 Energy Discharges 12 | . . . . . . 4 . . 8 Parts Rejected 1 | . . . . . . . . . 1 Data Loss (minor) 12 | . . . . . 1 4 . 1 6 Data Loss (major) 2 | . . . . . . 1 . . 1 Misfires 2 | . . . . . 1 . . . 1 Alerts 3 | . . . . . . . . . 3 Weapon Failures 3 | . . . . . . 2 1 . . Overload Shots . | . . . . . . . . . . Overflow Damage 232 | . . . . . . 112 . . 120 Projectiles . | . . . . . . . . . . Explosions 120 | . . . . . . . . . 120 Melee 112 | . . . . . . 112 . . . Knockbacks 15 | . . 6 . . 3 3 . . 3 Impact 1 | . . . . . . 1 . . . Kinetic 12 | . . 5 . . 2 2 . . 3 Secondary 2 | . . 1 . . 1 . . . . Self-Inflicted Damage 273 | . . . . . . . . . 273 Shots 7 | . . . . . . . . . 7 Rammed 3 | . . . . . . . . . 3 Targets Rammed 5 | . . . . . . . 2 . 3 Kicked 2 | . . . . . . . 2 . . Crushed . | . . . . . . . . . . Highest Temperature 502 | . . 43 . . 228 85 . . 502 Average Temperature 105 | . . 22 . . 93 21 . . 134 Received Heat Transfer 2487 | . . 120 . . 63 621 . . 1683 Effects 14 | . . . . . . . . . 14 Shutdowns 4 | . . . . . . . . . 4 Energy Bleed 3 | . . . . . . . . . 3 Interference 6 | . . . . . . . . . 6 Damage (minor) 1 | . . . . . . . . . 1 Siege Activations . | . . . . . . . . . . Robots Corrupted . | . . . . . . . . . . Combat Hostiles . | . . . . . . . . . . Parts Fried 3 | 1 . . . . . 2 . . . Impact Corruptions 3 | . . . . . . 3 . . . Robots Melted . | . . . . . . . . . . Combat Hostiles . | . . . . . . . . . . Parts Melted 6 | . . . . . . 6 . . . Heat Transferred 2969 | . 100 . . . 407 1681 . . 781 Parts Sabotaged . | . . . . . . . . . . Parts Stolen . | . . . . . . . . . . Parts Stripped . | . . . . . . . . . . Power Chain Reactions 1 | . 1 . . . . . . . . Alert | -11 -10 -10 -10 -9 -8 -8 -7 -7 -7 ------- Run | Yrd Mat Min Exi Min Mat Gar Fac Was Fac Peak Influence 1443 | 5 146 136 . . 100 356 186 99 1443 Initial 186 | . 3 56 . . . . 186 29 69 Average 355 | . 86 103 . . 16 154 84 93 961 Maximum Alert Level 4 | . . . . . . 1 . . 4 Low Security (%) 64 | 100 100 100 . 100 100 65 100 100 7 Level 1 9 | . . . . . . 34 . . 6 Level 2 3 | . . . . . . . . . 11 Level 3 9 | . . . . . . . . . 30 Level 4 13 | . . . . . . . . . 44 Level 5 . | . . . . . . . . . . High Security . | . . . . . . . . . . Max Security . | . . . . . . . . . . Squads Dispatched 13 | . 1 . . . . . 2 . 10 Investigation 1 | . . . . . . . . . 1 Extermination 3 | . . . . . . . 1 . 2 Reinforcement 6 | . 1 . . . . . 1 . 4 Assault 3 | . . . . . . . . . 3 Garrison . | . . . . . . . . . . Intercept . | . . . . . . . . . . Searches Triggered . | . . . . . . . . . . Construction Impeded 2 | . . . . . . . . . 2 Haulers Reinforced . | . . . . . . . . . . Active Scanning Responses . | . . . . . . . . . . Cargo Convoy Interrupts . | . . . . . . . . . . Stealth | -11 -10 -10 -10 -9 -8 -8 -7 -7 -7 --------- Run | Yrd Mat Min Exi Min Mat Gar Fac Was Fac Distress Signals 2 | . . . . . 1 . . . 1 Communications Jammed 4 | . . . . . . . 1 . 3 Distress Signals 4 | . . . . . . . 1 . 3 Times Spotted 102 | . 8 9 . . 5 14 5 1 60 Peak Tracking Total 9 | . 6 5 . . 4 9 2 1 7 Tactical Retreats 9 | . . 1 . . 1 1 . . 6 Traps | -11 -10 -10 -10 -9 -8 -8 -7 -7 -7 ------- Run | Yrd Mat Min Exi Min Mat Gar Fac Was Fac Traps Triggered 4 | . . . . . . 2 1 . 1 Indirectly . | . . . . . . . . . . Trap Hack Attempts . | . . . . . . . . . . Triggered . | . . . . . . . . . . Disarmed . | . . . . . . . . . . Reprogrammed . | . . . . . . . . . . Reused . | . . . . . . . . . . Traps Extracted . | . . . . . . . . . . Installed . | . . . . . . . . . . Triggered 1 | . 1 . . . . . . . . Machines | -11 -10 -10 -10 -9 -8 -8 -7 -7 -7 ---------- Run | Yrd Mat Min Exi Min Mat Gar Fac Was Fac Machines Disabled 21 | . . . . . . . . . 21 Max in Single Turn 4 | . . . . . . . . . 4 Machines Repaired . | . . . . . . . . . . Machines Dismantled . | . . . . . . . . . . Machines Sabotaged . | . . . . . . . . . . Overloaded Fab Kills . | . . . . . . . . . . Hacking | -11 -10 -10 -10 -9 -8 -8 -7 -7 -7 --------- Run | Yrd Mat Min Exi Min Mat Gar Fac Was Fac Machines Accessed 12 | . 1 1 4 . 1 1 . . 4 Terminals 5 | . 1 . . . . 1 . . 3 Fabricators . | . . . . . . . . . . Repair Stations 1 | . . . . . . . . . 1 Recycling Units . | . . . . . . . . . . Scanalyzers . | . . . . . . . . . . Garrison Access 1 | . . . . . 1 . . . . Total Hacks 42 | . 3 1 28 . 2 3 . . 5 Successful 34 | . 1 1 28 . 1 1 . . 2 Failed 8 | . 2 . . . 1 2 . . 3 Catastrophic 2 | . . . . . . 1 . . 1 Database Lockouts . | . . . . . . . . . . Manual 5 | . . . 1 . . . . . 4 Terminals 10 | . 3 . . . . 3 . . 4 Fabricators . | . . . . . . . . . . Repair Stations 1 | . . . . . . . . . 1 Recycling Units . | . . . . . . . . . . Scanalyzers . | . . . . . . . . . . Garrison Access 2 | . . . . . 2 . . . . Terminal Hacks 32 | . 1 1 28 . . 1 . . 1 Record 29 | . 1 . 28 . . . . . . Open Door 1 | . . 1 . . . . . . . Open DSF 1 | . . . . . . . . . 1 Security Stations 1 | . . . . . . 1 . . . Fabricator Hacks . | . . . . . . . . . . Repair Station Hacks 1 | . . . . . . . . . 1 Scan Component 1 | . . . . . . . . . 1 Recycling Unit Hacks . | . . . . . . . . . . Scanalyzer . | . . . . . . . . . . Garrison Access Hacks 1 | . . . . . 1 . . . . Unlock Access 1 | . . . . . 1 . . . . Unauthorized Hacks . | . . . . . . . . . . Terminals . | . . . . . . . . . . Fabricators . | . . . . . . . . . . Repair Stations . | . . . . . . . . . . Recycling Units . | . . . . . . . . . . Scanalyzers . | . . . . . . . . . . Garrison Access . | . . . . . . . . . . Data Cores Recovered . | . . . . . . . . . . Used . | . . . . . . . . . . Hacking Detections 4 | . . . . . . 1 . . 3 Full Trace Events 2 | . . . . . . 1 . . 1 Feedback Events 1 | . . . . . . 1 . . . Corruption 1 | . . . . . . 1 . . . Feedback Blocked . | . . . . . . . . . . Robot Schematics Acquired . | . . . . . . . . . . Robots Built . | . . . . . . . . . . Authchips . | . . . . . . . . . . Time . | . . . . . . . . . . Total Robot Build Rating . | . . . . . . . . . . Part Schematics Acquired . | . . . . . . . . . . Parts Built . | . . . . . . . . . . Authchips . | . . . . . . . . . . Time . | . . . . . . . . . . Total Part Build Rating . | . . . . . . . . . . Parts Repaired . | . . . . . . . . . . Time . | . . . . . . . . . . Parts Recycled . | . . . . . . . . . . Recycled Matter . | . . . . . . . . . . Retrieved Matter . | . . . . . . . . . . Retrieved Components . | . . . . . . . . . . Parts Scanalyzed . | . . . . . . . . . . Part Schematics Acquired . | . . . . . . . . . . Parts Damaged . | . . . . . . . . . . Bothacking | -11 -10 -10 -10 -9 -8 -8 -7 -7 -7 ------------ Run | Yrd Mat Min Exi Min Mat Gar Fac Was Fac Used RIF Installer . | . . . . . . . . . . Robots Hacked 3 | . . . . . . . 3 . . Non-combat 3 | . . . . . . . 3 . . Combat . | . . . . . . . . . . Robot Hacks Applied 4 | . . . . . . . 4 . . parse_system 2 | . . . . . . . 2 . . no_distress 1 | . . . . . . . 1 . . find_recycling 1 | . . . . . . . 1 . . Relay Couplers Released . | . . . . . . . . . . Fabnet Peak Effective % . | . . . . . . . . . . Robots Rewired . | . . . . . . . . . . Allies Hacked 1 | . . . . . . . . . 1 Hacks Repelled . | . . . . . . . . . . Allies | -11 -10 -10 -10 -9 -8 -8 -7 -7 -7 -------- Run | Yrd Mat Min Exi Min Mat Gar Fac Was Fac Total Allies 20 | . . . . . . . . 20 . Largest Group 20 | . . . . . . . . 20 20 Highest-Rated Group 565 | . . . . . . . . 565 565 Highest-Rated Ally 35 | . . . . . . . . 35 35 Total Orders . | . . . . . . . . . . Ally Attacks 156 | . . 6 . . . . . 3 147 Total Damage 4145 | . . 6 . . . . . 63 4076 Kills 32 | . . . . . . . . 1 31 Allies Corrupted 3 | . . . . 3 . . . . . Allies Melted . | . . . . . . . . . . Intel | -11 -10 -10 -10 -9 -8 -8 -7 -7 -7 ------- Run | Yrd Mat Min Exi Min Mat Gar Fac Was Fac Robot Analysis Total . | . . . . . . . . . . Derelict Logs Recovered 2 | . . 2 . . . . . . . Drone Launches 5 | . . 2 3 . . . . . . Drone Recoveries 2 | . . 1 1 . . . . . . Exploration | -11 -10 -10 -10 -9 -8 -8 -7 -7 -7 ------------- Run | Yrd Mat Min Exi Min Mat Gar Fac Was Fac Turns Passed 6994 | 85 273 325 665 362 545 1346 1078 395 1920 Spaces Moved 3775 | 65 243 218 543 285 284 620 450 202 865 Core 98 | 1 . 2 . . . 5 . 86 4 Treads 1287 | . . . . . 49 415 . 66 757 Legs 1755 | . . 8 543 285 235 184 450 50 . Wheels 332 | 64 243 11 . . . . . . 14 Hover . | . . . . . . . . . . Flight 303 | . . 197 . . . 16 . . 90 Fastest Speed 50 | 50 90 90 120 120 120 114 120 120 140 Average Speed 158 | 88 90 120 120 120 165 177 188 188 191 Slowest Speed 1700 | 90 90 200 120 120 190 437 260 250 1700 Overloaded Moves . | . . . . . . . . . . Propulsion Burnouts . | . . . . . . . . . . Robots Hopped . | . . . . . . . . . . Cave-ins Triggered . | . . . . . . . . . . Exploration Rate (%) 41 | 4 35 48 92 51 16 53 11 81 27 Regions Visited 9 Branch Regions 3 Pre-discovered Areas 2 | . . 1 1 . . . . . . Known Exits Taken 5 | . 1 1 1 1 1 . . . . Unknown Exits Taken 1 | 1 . . . . . . . . . Scrap Searched 3 | . . . . 3 . . . . . Spaces Dug . | . . . . . . . . . . Terrain Destroyed 117 | . 4 . . . . . . . 113 Melee . | . . . . . . . . . . Projectile 1 | . . . . . . . . . 1 AOE 116 | . 4 . . . . . . . 112 Terrain Rammed . | . . . . . . . . . . Walls Destroyed . | . . . . . . . . . . Machines Disabled . | . . . . . . . . . . Actions | -11 -10 -10 -10 -9 -8 -8 -7 -7 -7 --------- Run | Yrd Mat Min Exi Min Mat Gar Fac Was Fac Total 4469 | 82 270 251 556 306 338 772 643 219 1032 Wait 221 | 2 . . 9 3 22 60 95 . 30 Move 3761 | 64 242 217 542 284 283 613 450 201 865 Hop . | . . . . . . . . . . Pick Up 81 | 6 5 4 . 2 12 8 22 2 20 Fast Attach 37 | 6 2 4 . 2 4 4 2 3 10 Attach 38 | . . 1 . 1 3 10 11 . 12 Detach 3 | . . . . . . . 2 . 1 Swap 42 | 1 2 3 3 . 2 6 11 3 11 Drop 70 | . 5 7 1 4 2 5 19 10 17 Fire 180 | 3 14 15 . . 10 47 29 . 62 Melee 9 | . . . . . . 9 . . . Ram 3 | . . . . . . . . . 3 Kick 2 | . . . . . . . 2 . . Crush . | . . . . . . . . . . Escape Stasis 11 | . . . . . . 10 . . 1 Rewire 11 | . . . 1 10 . . . . . Trap . | . . . . . . . . . . Miscellaneous . | . . . . . . . . . . Route ------- -11/Scrapyard -10/Materials -10/Mines -10/Exiles (discovered 2 exits: *Min x2) -9/Mines -8/Materials (discovered 3 exits: Fac / Sto / Gar) -8/Garrison (discovered 3 exits: *Fac x3) -7/Factory -7/Waste -7/Factory History --------- Turn | Location | Event 17 | -11/Scrapyard | Discovered new exit (range 14) 86 | -11/Scrapyard | Entered Materials 302 | -10/Materials | Discovered new exit (range 11) 310 | -10/Materials | Identified exit to Mines 317 | -10/Materials | Build established: Mutant 359 | -10/Materials | Entered Mines 528 | -10/Mines | Learned location of Zion (-6) 574 | -10/Mines | Learned 4 Materials zone layouts 644 | -10/Mines | Found the Drone Emporium 649 | -10/Mines | Found Prototype Device 649 | -10/Mines | Identified Thief Drone Bay 679 | -10/Mines | Deemed a non-threat by the Exiles lab entrance 680 | -10/Mines | Discovered new exit (range 5) 683 | -10/Mines | Identified exit to Exiles 684 | -10/Mines | Entered Exiles 684 | -10/Exiles | Accompanied by 1 ally 726 | -10/Exiles | Discovered new exit (range 17) 762 | -10/Exiles | Met 8R-AWN 791 | -10/Exiles | Met EX-HEX 839 | -10/Exiles | Met EX-BIN 865 | -10/Exiles | Aligned with FarCom system 866 | -10/Exiles | Given EX-Vault access code 1026 | -10/Exiles | Met EX-DEC 1094 | -10/Exiles | Visited The Gauntlet 1330 | -10/Exiles | Discovered new exit (range 15) 1348 | -10/Exiles | Identified exit to Mines 1349 | -10/Exiles | Entered Mines 1349 | -9/Mines | Accompanied by 3 allies 1368 | -9/Mines | Met a Derelict bent on vengeance 1410 | -9/Mines | Discovered new exit (range 16) 1431 | -9/Mines | Identified exit to Materials 1711 | -9/Mines | Entered Materials 1711 | -8/Materials | Evolved 4 slots: Power x1, Propulsion x1, Utility x2 1712 | -8/Materials | Identified exit to Storage 1712 | -8/Materials | Identified exit to Factory 2254 | -8/Materials | Identified exit to Garrison 2256 | -8/Materials | Entered Garrison 2306 | -8/Garrison | Triggered checkpoint 2400 | -8/Garrison | Triggered checkpoint 2422 | -8/Garrison | Triggered checkpoint 2484 | -8/Garrison | Discovered exit to Factory (range 15) 2515 | -8/Garrison | Learned Factory security intel 2524 | -8/Garrison | Attempted to access garrison exit controls, blocked by remote lockdown 2630 | -8/Garrison | Triggered checkpoint 2944 | -8/Garrison | Discovered exit to Factory (range 11) 2962 | -8/Garrison | Attempted to access garrison exit controls, blocked by remote lockdown 2998 | -8/Garrison | Triggered checkpoint 3052 | -8/Garrison | Core integrity fell below 50% 3072 | -8/Garrison | Lost 11 parts (2p4n2u3w) 3354 | -8/Garrison | Triggered checkpoint 3373 | -8/Garrison | Build established: Scavenger-Mutant 3556 | -8/Garrison | Discovered exit to Factory (range 15) 3602 | -8/Garrison | Entered Factory 3602 | -7/Factory | Evolved 2 slots: Propulsion x1, Weapon x1 4350 | -7/Factory | Build established: Scavenger-Skirmisher 4680 | -7/Factory | Sucked down chute 4680 | -7/Factory | Entered Waste 4681 | -7/Waste | Joined by Warlord forces that had cleared the area 4919 | -7/Waste | Discovered new exit (range 16) 5075 | -7/Waste | Entered Factory 5075 | -7/Factory | Accompanied by 20 allies 5475 | -7/Factory | First assault squad dispatched 5696 | -7/Factory | Build established: Infiltrator-Skirmisher 5775 | -7/Factory | Lost 8 allies 5862 | -7/Factory | Found Prototype Launcher 5863 | -7/Factory | Identified Rocket Array 6015 | -7/Factory | P-60 Hacker assimilated allied KF-S0K(m) 6022 | -7/Factory | Build established: Scavenger-Tank 6055 | -7/Factory | Lost 5 allies 6492 | -7/Factory | Lost 6 parts (2n2u2w) 6544 | -7/Factory | System corruption reached 10% 6597 | -7/Factory | Core integrity fell below 50% 6628 | -7/Factory | Core integrity fell below 20% 6663 | -7/Factory | Lost 8 parts (1p3n1u3w) 6746 | -7/Factory | Build established: Mutant 6995 | -7/Factory | Destroyed by G-47 Trooper with Particle Gun Last Messages --------------- 06766_ System corrupted: Heat flow error (+152). 06781_ BTP ZZSQN=HO18JB6MLZT/2,WO/A#, 06788_ Acquired Unknown Hover Unit. 06806_ System corrupted: IFF burst signal emitted. 06824_ System corrupted: Matter fused (-2). 06848_ System corrupted: Component data lost. 06862_ O-24 Administrator: "IFF HANDSHAKE FAILED. SECURING TERMINAL." 06863_ System corrupted: Imp. Cesium-ion Thruster rejected. 06863_ O-24 Administrator uses terminal to summon reinforcements. 06863_ ALERT: Hostiles spotted, dispatching reinforcements to Terminal F018. 06863_ O-24 Administrator locks terminal. 06871_ K-01 Serf cleans the Subcomponent Replicator. 06896_ System corrupted: Energy discharge (-42). 06909_ Acquired Lgt. Nuclear Core. 06951_ Connecting with Terminal... 06951_ ALERT: Suspicious activity at Terminal F007. Dispatching Investigation squad. 06969_ G53#1%OQCJ16H DV